bitfinex-derivatives/quotes_SOLF0:USTF0_20241216
["timestamp","ask_amount","ask_price","bid_price","bid_amount"]
[1734308099563,2.98,223.96,223.76,8.4761]
[1734308099970,2.98,223.96,223.77,1.11762751]
[1734308100169,2.98,223.96,223.76,8.4761]
[1734308100370,2.2335,223.95,223.76,8.4761]
[1734308100564,86.34661241,223.97,223.77,1.11764903]
[1734308100771,86.34661241,223.97,223.78,1.11764903]
[1734308101071,2.98,223.96,223.79,1.11764903]
[1734308101265,2.98,223.96,223.76,8.4761]
[1734308101470,2.98,223.96,223.77,1.1175793]
[1734308101665,2.98,223.96,223.78,1.1175793]
[1734308101863,2.98,223.96,223.79,1.1175793]
[1734308102070,5.2133,223.96,223.9,2.2338]
[1734308102368,2.98,223.96,223.82,2.98]
[1734308102572,2.98,223.96,223.95,2.2334]
[1734308103070,2.98,223.96,223.82,2.98]
[1734308103271,2.98,223.96,223.93,2.2335]
[1734308103471,2.98,223.96,223.82,2.98]
[1734308103871,2.98,223.96,223.93,2.2335]
[1734308105577,2.98,223.96,223.76,8.4761]
[1734308105578,2.98,223.96,223.92,2.2336]
[1734308105768,2.98,223.96,223.8,2.98]
[1734308105973,2.2337,223.92,223.84,2.2344]
[1734308106168,2.98,223.96,223.76,11.4561]
[1734308106677,2.98,223.96,223.76,8.4761]
[1734308106874,2.98,223.96,223.76,11.4561]
[1734308107471,2.98,223.96,223.76,8.4761]
[1734308107676,2.98,223.96,223.77,1.11762285]
[1734308107975,2.98,223.96,223.76,8.4761]
[1734308108277,2.98,223.95,223.77,1.11760214]
[1734308108573,2.98,223.95,223.78,1.11760214]
[1734308108777,2.98,223.95,223.79,1.11760214]
[1734308108979,2.2338,223.91,223.76,8.4761]
[1734308109184,2.98,223.95,223.76,11.4361]
[1734308109790,2.2339,223.9,223.76,11.4361]
[1734308109979,2.96,223.89,223.76,11.4361]
[1734308111283,2.96,223.89,223.77,1.11772174]
[1734308111485,5.194,223.89,223.76,8.4761]
[1734308111786,2.96,223.93,223.76,8.4761]
[1734308111977,2.96,223.93,223.88,2.234]
[1734308112178,2.96,223.93,223.76,8.4761]
[1734308112179,2.96,223.93,223.78,1.11772812]
[1734308112382,2.96,223.93,223.76,8.4761]
[1734308112583,2.96,223.93,223.77,1.11768302]
[1734308112787,2.96,223.93,223.78,1.11768302]
[1734308113091,2.96,223.93,223.89,2.2339]
[1734308113285,2.96,223.93,223.8,1.11765509]
[1734308113485,2.96,223.93,223.76,8.4761]
[1734308113688,2.96,223.93,223.77,1.1176533]
[1734308113983,2.96,223.93,223.76,8.4761]
[1734308113984,2.96,223.93,223.78,1.1176533]
[1734308114181,2.96,223.93,223.79,1.1176533]
[1734308114387,2.96,223.93,223.8,1.1176533]
[1734308114584,5.1937,223.93,223.88,2.2341]
[1734308115088,2.96,223.93,223.9,2.2338]
[1734308116179,2.96,223.93,223.88,2.234]
[1734308116380,2.96,223.93,223.76,8.4761]
[1734308116584,2.96,223.93,223.77,1.11764991]
[1734308116784,2.96,223.93,223.89,2.2339]
[1734308119384,2.96,223.93,223.77,1.11772901]
[1734308119685,2.96,223.93,223.78,1.11772901]
[1734308119885,2.96,223.93,223.76,8.4761]
[1734308119886,2.96,223.93,223.79,1.11772901]
[1734308120081,2.234,223.89,223.8,1.11772901]
[1734308120288,2.96,223.93,223.76,8.4761]
[1734308120481,2.96,223.93,223.77,1.11786589]
[1734308120687,2.96,223.93,223.81,2.2348]
[1734308120982,2.96,223.93,223.76,8.4761]
[1734308121191,5.52048841,223.97,223.76,8.4761]
[1734308121388,2.96,223.96,223.77,1.11795237]
[1734308121791,2.2336,223.94,223.78,1.11795237]
[1734308121990,2.96,223.96,223.79,1.11795237]
[1734308122184,2.96,223.96,223.8,1.11795237]
[1734308122387,18.18661675,224.01,223.81,1.11795237]
[1734308122586,18.18661675,224.01,223.82,1.11795237]
[1734308122587,2.96,224.0,223.82,1.11795237]
[1734308122784,2.96,224.0,223.83,1.11795237]
[1734308123092,2.96,224.0,223.84,1.11795237]
[1734308123287,2.96,224.0,223.85,1.11795237]
[1734308123487,2.96,224.0,223.76,8.4761]
[1734308123788,2.2333,223.96,223.83,2.2345]
[1734308123988,2.2333,223.96,223.84,1.11747769]
[1734308124291,2.2333,223.96,223.76,8.4761]
[1734308124488,2.2334,223.95,223.9,2.2338]
[1734308124683,2.96,223.94,223.76,8.4761]
[1734308124888,2.96,223.93,223.77,1.11764438]
[1734308125091,2.234,223.89,223.76,8.4761]
[1734308125290,2.96,223.88,223.78,1.11765428]
[1734308125591,2.96,223.88,223.83,2.2345]
[1734308125791,2.96,223.88,223.76,8.4761]
[1734308125988,2.96,223.88,223.77,1.11772605]
[1734308126187,2.96,223.88,223.84,2.2344]
[1734308126783,2.96,223.88,223.76,8.4761]
[1734308126993,2.96,223.88,223.77,1.11786553]
[1734308127297,2.96,223.88,223.76,8.4761]
[1734308128197,5.52921201,223.95,223.76,8.4761]
[1734308128494,2.96,223.94,223.77,1.11793087]
[1734308128696,2.96,223.93,223.78,1.11793087]
[1734308128895,5.1937,223.92,223.82,2.2346]
[1734308129098,2.96,223.91,223.76,11.4361]
[1734308129294,2.96,223.91,223.77,1.11767282]
[1734308129489,2.96,223.91,223.76,11.4361]
[1734308129490,2.96,223.91,223.87,2.2342]
[1734308130489,2.96,223.91,223.76,11.4361]
[1734308130698,2.96,223.91,223.88,2.234]
[1734308132899,2.2334,223.95,223.88,2.234]
[1734308133101,2.96,223.94,223.88,2.234]
[1734308133299,2.96,223.93,223.88,2.234]
[1734308133496,2.96,223.93,223.8,2.2348]
[1734308133497,2.96,223.92,223.8,2.2348]
[1734308133702,2.96,223.92,223.81,1.1176705]
[1734308133906,2.96,223.92,223.82,1.1176705]
[1734308134100,2.96,223.92,223.76,11.4361]
[1734308134402,2.96,223.92,223.77,1.1176785]
[1734308134601,2.96,223.92,223.78,1.1176785]
[1734308134797,2.96,223.92,223.79,1.1176785]
[1734308134995,2.96,223.92,223.8,1.1176785]
[1734308135192,2.96,223.92,223.81,1.1176785]
[1734308135498,2.96,223.92,223.76,8.4761]
[1734308135698,2.2344,223.85,223.8,2.2348]
[1734308135898,5.1944,223.85,223.8,2.2348]
[1734308136299,2.96,223.85,223.81,2.2348]
[1734308136502,2.9061,223.91,223.76,8.4761]
[1734308136796,2.96,223.9,223.77,1.11785399]
[1734308137001,12.202973,224.0,223.78,1.11785399]
[1734308137202,9.6183404,223.99,223.79,1.11785399]
[1734308137404,5.5446326,223.98,223.8,1.11785399]
[1734308137600,5.5446326,223.98,223.81,1.11785399]
[1734308137806,5.5446326,223.98,223.82,1.11785399]
[1734308138102,5.5446326,223.98,223.76,8.4761]
[1734308138297,5.5446326,223.98,223.77,1.11767806]
[1734308138601,5.5446326,223.98,223.76,8.4761]
[1734308138906,5.5446326,223.98,223.77,1.11767558]
[1734308139105,5.5446326,223.98,223.78,1.11767558]
[1734308139304,5.5446326,223.98,223.79,1.11767558]
[1734308139506,2.2336,223.93,223.8,1.11767558]
[1734308139703,2.96,223.92,223.81,1.11767558]
[1734308139902,2.96,223.92,223.82,1.11767558]
[1734308140207,2.96,223.92,223.77,2.96]
[1734308140508,15.13043507,224.0,223.78,1.11766711]
[1734308140701,15.13043507,224.0,223.77,2.96]
[1734308140702,15.16783507,223.99,223.85,2.2344]
[1734308140999,9.62124575,223.99,223.77,2.96]
[1734308141204,2.9226,224.0,223.78,1.11754207]
[1734308141399,12.20405566,224.03,223.79,1.11754207]
[1734308141596,2.96,224.02,223.8,1.11754207]
[1734308141808,2.96,224.02,223.81,1.11754207]
[1734308142004,2.96,224.02,223.78,24.53762358]
[1734308142005,2.96,224.02,223.79,6.13440589]
[1734308142306,2.96,224.02,223.79,24.53762358]
[1734308142506,2.96,224.02,223.8,5.709746]
[1734308142706,2.96,224.01,223.81,1.11724629]
[1734308143006,2.96,224.01,223.82,1.11724629]
[1734308143207,2.96,224.01,223.83,4.07724629]
[1734308143403,2.96,224.01,223.84,1.11724629]
[1734308143702,2.96,224.01,223.85,3.98824629]
[1734308143905,5.8858,224.08,224.0,2.2329]
[1734308144104,2.96,224.06,223.9,2.96]
[1734308144311,2.96,224.06,223.91,1.11702889]
[1734308144608,2.96,224.06,223.92,1.11702889]
[1734308144802,2.96,224.06,224.04,2.2324]
[1734308145004,2.96,224.1,223.96,2.96]
[1734308145201,2.96,224.1,223.97,8.659]
[1734308145401,2.96,224.11,223.97,8.659]
[1734308145613,2.8015,224.15,223.97,8.659]
[1734308145807,2.96,224.16,224.03,2.2325]
[1734308146001,2.96,224.16,224.02,2.96]
[1734308146405,2.96,224.16,224.14,2.2314]
[1734308147306,2.2308,224.22,224.02,2.96]
[1734308147507,2.96,224.19,224.15,2.2313]
[1734308148209,2.96,224.2,224.09,8.8193]
[1734308148705,2.96,224.2,224.16,2.2313]
[1734308149009,2.96,224.2,224.09,8.8193]
[1734308150614,2.96,224.2,224.09,2.8444]
[1734308151401,2.2312,224.17,224.1,2.2319]
[1734308151806,2.96,224.2,224.09,8.24398799]
[1734308152003,2.96,224.19,224.09,8.24398799]
[1734308153109,2.96,224.2,224.09,8.24398799]
[1734308153813,2.96,224.23,224.09,11.20398799]
[1734308154103,86.23222371,224.27,224.1,5.9377]
[1734308154310,2.96,224.26,224.23,2.2305]
[1734308154608,2.96,224.27,224.23,2.2305]
[1734308154803,2.96,224.27,224.1,5.9377]
[1734308155001,2.96,224.27,224.23,2.2305]
[1734308155908,2.9603,224.29,224.23,2.2305]
[1734308156107,2.96,224.28,224.23,2.2305]
[1734308156310,2.96,224.28,224.1,5.9377]
[1734308156807,5.8329,224.28,224.1,5.9377]
[1734308157210,2.2306,224.24,224.17,2.2312]
[1734308157411,5.8329,224.28,224.17,1.8512]
[1734308158108,5.8329,224.28,224.1,5.9377]
[1734308159211,2.96,224.27,224.1,5.9377]
[1734308160908,5.7942,224.29,224.1,5.9377]
[1734308161211,2.2303,224.26,224.1,5.9377]
[1734308161607,5.1902,224.28,224.2,2.2308]
[1734308161810,2.96,224.28,224.2,2.2308]
[1734308162008,2.96,224.28,224.15,2.2313]
[1734308162210,2.96,224.28,224.1,5.9377]
[1734308162609,2.96,224.28,224.17,2.2312]
[1734308162804,2.96,224.28,224.1,5.9377]
[1734308163714,2.2308,224.22,224.1,5.9377]
[1734308163914,2.96,224.21,224.1,5.9377]
[1734308164109,2.2311,224.18,224.1,5.1637]
[1734308164316,2.96,224.21,224.1,2.9319]
[1734308164509,2.96,224.21,224.09,8.24398799]
[1734308165315,2.96,224.21,224.15,2.2314]
[1734308166010,2.96,224.21,224.09,8.24398799]
[1734308166713,2.2312,224.17,224.09,8.24398799]
[1734308167605,2.2314,224.15,224.04,2.9574]
[1734308167906,2.96,224.14,224.02,3.0231]
[1734308168109,2.94,224.13,224.02,3.0231]
[1734308168305,5.1718,224.12,224.05,2.2323]
[1734308168504,2.94,224.11,224.02,3.0231]
[1734308169412,2.94,224.11,224.09,2.232]
[1734308169813,2.94,224.11,224.03,5.33290855]
[1734308170212,2.94,224.11,224.07,2.2321]
[1734308170417,2.94,224.11,224.03,5.33290855]
[1734308170608,2.94,224.11,223.97,2.9314]
[1734308170809,2.232,224.09,224.03,2.2325]
[1734308171216,2.2321,224.08,224.01,2.2327]
[1734308171512,2.94,224.11,223.96,3.0085]
[1734308171712,2.9043,224.1,223.96,3.0085]
[1734308172212,2.2322,224.07,224.0,2.2328]
[1734308172814,2.921,224.09,224.0,2.2328]
[1734308173017,2.921,224.09,223.99,2.233]
[1734308173216,5.8975,224.09,223.93,57.02859698]
[1734308173814,2.2325,224.05,223.96,2.2333]
[1734308174016,2.94,224.04,223.84,5.7826]
[1734308174216,2.94,224.03,223.86,2.94]
[1734308174415,2.94,224.02,223.86,2.94]
[1734308174619,2.233,223.99,223.93,2.2335]
[1734308175815,2.2332,223.97,223.91,2.2337]
[1734308176015,2.94,223.96,223.91,2.2337]
[1734308176214,2.94,223.96,223.85,2.9148]
[1734308176914,2.94,223.96,223.87,5.39011571]
[1734308177714,2.94,223.96,223.89,2.2339]
[1734308178721,2.2336,223.93,223.87,2.2341]
[1734308179017,3.0501,223.95,223.82,5.23618902]
[1734308179214,2.2339,223.9,223.84,2.2344]
[1734308179414,2.94,223.89,223.84,2.2344]
[1734308179617,2.94,223.89,223.79,2.9864]
[1734308179919,2.2343,223.86,223.8,2.2348]
[1734308180815,2.94,223.89,223.77,2.9099]
[1734308181122,2.94,223.89,223.78,5.40628752]
[1734308181310,2.94,223.89,223.85,2.2343]
[1734308181511,2.94,223.89,223.78,5.40628752]
[1734308182115,2.94,223.91,223.78,5.40628752]
[1734308183316,2.2339,223.9,223.83,2.2345]
[1734308183816,2.94,223.91,223.78,5.40628752]
[1734308184012,2.94,223.91,223.84,2.2345]
[1734308184413,2.234,223.89,223.82,2.2346]
[1734308184610,2.94,223.91,223.82,2.2346]
[1734308184811,2.94,223.91,223.78,5.40628752]
[1734308185016,2.94,223.91,223.77,2.9099]
[1734308185219,2.94,223.91,223.56,202.84610589]
[1734308185422,2.9159,223.9,223.68,7.06617257]
[1734308185619,2.9159,223.9,223.74,5.37709328]
[1734308185812,2.9159,223.9,223.68,5.9483]
[1734308186020,16.3259,223.9,223.66,2.8324]
[1734308186221,2.2354,223.75,223.69,2.2359]
[1734308186425,2.94,223.74,223.69,2.2359]
[1734308186921,2.94,223.78,223.65,5.41680831]
[1734308187218,2.94,223.78,223.66,8.7284]
[1734308188121,2.94,223.81,223.67,2.94]
[1734308188720,2.94,223.81,223.71,2.2358]
[1734308188922,2.9159,223.9,223.67,2.94]
[1734308189124,2.94,223.89,223.67,2.94]
[1734308189624,2.94,223.89,223.79,2.2349]
[1734308189625,2.2343,223.86,223.79,2.2349]
[1734308190223,2.94,223.85,223.79,2.2349]
[1734308190414,2.94,223.85,223.67,2.94]
[1734308191022,2.94,223.85,223.83,2.2345]
[1734308191723,2.94,223.85,223.79,2.2349]
[1734308192021,2.94,223.85,223.73,2.94]
[1734308192220,2.94,223.86,223.73,2.94]
[1734308192420,2.94,223.86,223.84,2.2345]
[1734308193715,2.94,223.86,223.73,2.94]
[1734308193920,2.94,223.86,223.66,9.84627753]
[1734308194120,2.94,223.86,223.67,2.94]
[1734308194326,2.94,223.86,223.77,2.2351]
[1734308194524,2.94,223.86,223.68,2.94]
[1734308195225,2.94,223.86,223.81,2.2348]
[1734308195426,2.94,223.86,223.68,2.94]
[1734308195621,2.94,223.86,223.82,2.2347]
[1734308196222,5.1743,223.86,223.68,2.94]
[1734308196430,2.94,223.86,223.68,2.94]
[1734308197628,2.94,223.85,223.68,2.94]
[1734308197832,2.94,223.86,223.68,2.94]
[1734308198020,2.94,223.86,223.73,2.2355]
[1734308198226,2.94,223.86,223.68,2.94]
[1734308199124,13.41,224.11,223.69,4.472]
[1734308199421,2.94,223.92,223.7,1.11798102]
[1734308199628,2.94,223.92,223.69,4.472]
[1734308199830,2.94,223.92,223.71,1.1176686]
[1734308200221,2.94,223.92,223.72,1.1176686]
[1734308200426,2.94,223.92,223.73,1.1176686]
[1734308200623,2.94,223.92,223.74,2.94]
[1734308200828,64.53,224.06,223.75,2.94]
[1734308201026,2.94,224.05,223.76,13.0137686]
[1734308201222,2.94,224.04,223.77,1.1176686]
[1734308201427,2.94,224.04,223.78,1.1176686]
[1734308201622,5.9468,224.1,224.0,2.2328]
[1734308201827,5.9468,224.1,223.9,2.94]
[1734308201828,2.94,224.09,223.9,2.94]
[1734308202123,5.9468,224.1,223.91,8.8062]
[1734308202323,2.94,224.23,223.91,8.8062]
[1734308202527,5.9269,224.24,223.91,8.8062]
[1734308202727,5.29161416,224.2,223.91,8.8062]
[1734308202930,2.94,224.23,223.92,1.116874]
[1734308203229,2.94,224.23,224.1,2.2319]
[1734308203429,2.2309,224.2,224.1,2.2319]
[1734308203626,5.29000544,224.21,224.1,2.2319]
[1734308204327,5.29000544,224.21,224.04,3.0062]
[1734308204631,5.29000544,224.21,223.98,2.94]
[1734308204823,5.29000544,224.21,224.01,5.3687627]
[1734308205322,2.2314,224.15,224.06,2.2322]
[1734308205520,2.94,224.14,224.06,2.2322]
[1734308205926,2.94,224.13,224.01,5.3687627]
[1734308206127,2.94,224.12,223.98,2.94]
[1734308206432,2.94,224.11,223.98,2.94]
[1734308206733,2.94,224.1,223.94,2.94]
[1734308207232,2.94,224.1,224.05,2.2323]
[1734308207433,5.29000544,224.21,223.99,5.38698915]
[1734308207734,5.29000544,224.21,224.0,2.94]
[1734308207930,2.94,224.2,224.0,2.94]
[1734308208134,2.94,224.19,224.0,2.94]
[1734308208332,2.94,224.21,224.17,2.2311]
[1734308208529,2.94,224.21,224.07,2.94]
[1734308208829,14.16729624,224.24,224.17,2.2311]
[1734308209131,14.16729624,224.24,224.08,8.7086]
[1734308209132,5.9497,224.24,224.08,8.7086]
[1734308209533,5.9497,224.24,224.12,2.2316]
[1734308209734,5.9497,224.24,224.08,8.7086]
[1734308210929,5.9497,224.24,224.19,2.231]
[1734308211129,2.94,224.24,224.08,8.7086]
[1734308211432,2.2299,224.3,224.08,8.7086]
[1734308211731,2.94,224.29,224.08,8.7086]
[1734308212031,2.94,224.28,224.08,8.7086]
[1734308212226,5.1702,224.27,224.08,8.7086]
[1734308212727,2.94,224.27,224.09,2.94]
[1734308212935,5.6454,224.36,224.13,5.35499043]
[1734308213129,2.94,224.35,224.13,5.35499043]
[1734308213531,2.94,224.35,224.26,2.2303]
[1734308213731,5.40909748,224.33,224.18,2.94]
[1734308213929,5.40909748,224.33,224.13,5.35499043]
[1734308213930,2.2299,224.3,224.22,2.2306]
[1734308214234,5.40909748,224.33,224.15,2.94]
[1734308214235,2.94,224.29,224.15,2.94]
[1734308214825,5.6454,224.36,224.15,2.94]
[1734308215026,2.94,224.35,224.15,2.94]
[1734308215435,5.1694,224.35,224.27,2.2301]
[1734308215833,2.94,224.34,224.15,2.94]
[1734308217629,2.94,224.34,224.13,5.35499043]
[1734308218433,2.94,224.34,224.28,2.2301]
[1734308219336,3.0291,224.36,224.19,8.972]
[1734308219539,2.92,224.37,224.19,8.972]
[1734308219731,22.0682,224.5,224.19,8.972]
[1734308219934,2.92,224.4,224.35,2.2294]
[1734308220537,2.92,224.4,224.26,2.92]
[1734308220741,8.6582,224.5,224.26,2.92]
[1734308220941,2.92,224.45,224.26,2.92]
[1734308222530,2.92,224.45,224.37,2.2291]
[1734308223734,2.92,224.49,224.43,2.2286]
[1734308223936,5.8836,224.5,224.33,8.701]
[1734308224336,2.9636,224.5,224.33,8.701]
[1734308224934,5.8562,224.49,224.35,2.2293]
[1734308225338,2.2287,224.42,224.35,2.2293]
[1734308225538,2.92,224.43,224.35,2.2293]
[1734308225933,2.2287,224.42,224.28,2.92]
[1734308226238,2.92,224.43,224.26,5.8145]
[1734308227336,2.92,224.43,224.33,2.2296]
[1734308227540,2.92,224.43,224.26,5.8145]
[1734308227945,2.92,224.43,224.27,2.92]
[1734308228239,5.8562,224.49,224.27,2.92]
[1734308228448,5.1481,224.48,224.27,2.92]
[1734308228939,5.1481,224.48,224.28,3.0753]
[1734308229346,2.2284,224.45,224.28,3.0753]
[1734308229537,2.92,224.48,224.28,3.0753]
[1734308229743,2.92,224.48,224.36,2.2292]
[1734308230148,2.92,224.48,224.28,3.0753]
[1734308230343,2.2285,224.44,224.36,2.2292]
[1734308230752,2.2289,224.4,224.28,3.0753]
[1734308230952,2.92,224.41,224.33,2.2295]
[1734308231144,2.92,224.4,224.28,3.0753]
[1734308231350,2.92,224.4,224.31,2.2297]
[1734308231551,2.92,224.4,224.28,3.0753]
[1734308232349,2.9636,224.5,224.28,3.0753]
[1734308232350,2.92,224.42,224.28,3.0753]
[1734308232549,2.92,224.44,224.28,3.0753]
[1734308232845,2.9636,224.5,224.28,3.0753]
[1734308232846,2.92,224.46,224.28,3.0753]
[1734308233254,2.92,224.46,224.4,2.2289]
[1734308233843,5.1483,224.46,224.4,2.2289]
[1734308234050,2.92,224.46,224.33,2.92]
[1734308234244,2.92,224.46,224.4,2.2288]
[1734308234846,2.92,224.46,224.33,2.92]
[1734308235347,2.92,224.46,224.36,2.2292]
[1734308235552,2.92,224.46,224.33,2.92]
[1734308235850,2.2283,224.46,224.33,2.92]
[1734308236050,5.1483,224.46,224.39,2.229]
[1734308236253,2.92,224.46,224.39,2.229]
[1734308236953,2.9636,224.5,224.32,2.92]
[1734308237153,2.92,224.49,224.4,2.2289]
[1734308237449,2.92,224.49,224.32,2.92]
[1734308237653,2.2282,224.47,224.41,2.2288]
[1734308238052,2.2282,224.48,224.42,2.2286]
[1734308238259,2.9636,224.5,224.37,5.32375146]
[1734308238554,5.8836,224.5,224.37,5.32375146]
[1734308239058,5.8836,224.5,224.37,8.24375146]
[1734308240757,2.9636,224.5,224.37,8.24375146]
[1734308240956,2.92,224.51,224.47,2.2282]
[1734308241148,2.92,224.52,224.38,9.0501]
[1734308241653,3.14998,224.53,224.38,9.0501]
[1734308243648,0.22998,224.53,224.38,9.0501]
[1734308243848,0.22998,224.53,224.39,1.11457988]
[1734308244052,0.22998,224.53,224.38,9.0501]
[1734308244053,0.22998,224.53,224.52,2.2277]
[1734308246760,0.22998,224.53,224.45,2.92]
[1734308246955,2.92,224.52,224.38,9.0501]
[1734308247162,2.92,224.52,224.39,1.11461956]
[1734308247461,2.9857,224.51,224.42,2.2287]
[1734308247760,2.228,224.49,224.38,3.0782]
[1734308248059,5.9327,224.51,224.38,3.0782]
[1734308248259,8.1605,224.51,224.38,3.0782]
[1734308248458,5.9327,224.51,224.38,3.0782]
[1734308248659,5.9327,224.51,224.46,2.2283]
[1734308248855,5.9327,224.51,224.38,3.0782]
[1734308249360,5.9327,224.51,224.44,2.2285]
[1734308249557,5.9327,224.51,224.38,3.0782]
[1734308249558,8.1606,224.51,224.38,3.0782]
[1734308249762,2.9857,224.51,224.39,1.11482142]
[1734308249960,2.9857,224.51,224.4,1.11482142]
[1734308250157,2.228,224.49,224.38,3.0782]
[1734308250362,2.9857,224.51,224.39,1.11486345]
[1734308250558,2.9857,224.51,224.4,1.11479262]
[1734308250760,2.9857,224.51,224.38,3.0782]
[1734308251057,2.9857,224.51,224.39,1.11477399]
[1734308251257,5.37089219,224.61,224.6,37.15242]
[1734308251464,8.29089219,224.61,224.6,37.15242]
[1734308252462,2.92,224.61,224.6,37.15242]
[1734308254362,5.1468,224.61,224.6,37.15242]
[1734308254865,5.1468,224.61,224.6,27.31602]
[1734308255168,16.33,224.61,224.43,1.11447041]
[1734308255363,13.41,224.61,224.44,1.11447041]
[1734308255568,2.92,224.6,224.45,1.11447041]
[1734308255867,2.92,224.6,224.38,8.8942]
[1734308256059,16.33,224.6,224.44,2.2285]
[1734308256568,2.92,224.6,224.45,2.2284]
[1734308257463,2.2278,224.51,224.46,2.2282]
[1734308257670,2.9,224.55,224.38,5.9742]
[1734308257965,5.1274,224.55,224.44,2.2284]
[1734308258263,2.9,224.55,224.4,2.9]
[1734308258467,91.40310222,224.63,224.41,1.1146684]
[1734308258668,91.40310222,224.63,224.5,2.2278]
[1734308258669,2.2273,224.56,224.5,2.2278]
[1734308258969,2.9,224.56,224.5,2.2278]
[1734308260068,91.40310222,224.63,224.4,2.9]
[1734308260069,2.9,224.57,224.4,2.9]
[1734308260270,2.9,224.58,224.41,1.11446938]
[1734308260472,2.9,224.58,224.42,1.11446938]
[1734308260666,5.1271,224.58,224.53,2.2276]
[1734308261365,5.127,224.6,224.54,2.2275]
[1734308261566,2.9,224.6,224.46,2.9]
[1734308261773,2.2268,224.62,224.51,2.2277]
[1734308261975,2.9,224.61,224.47,2.9139]
[1734308262268,2.9,224.61,224.56,2.2273]
[1734308262675,2.9,224.61,224.48,5.7369]
[1734308262971,2.2266,224.64,224.48,5.7369]
[1734308263175,2.9,224.64,224.48,5.7369]
[1734308263370,2.9,224.65,224.49,1.11427153]
[1734308263572,2.9,224.65,224.5,1.11427153]
[1734308263773,2.2265,224.64,224.51,1.11417696]
[1734308264071,2.2265,224.64,224.48,5.7369]
[1734308264473,2.9,224.65,224.49,1.11416198]
[1734308264673,2.9,224.65,224.5,1.11416198]
[1734308264873,2.9,224.65,224.51,1.11416198]
[1734308265074,2.9,224.65,224.48,5.7369]
[1734308265276,2.9,224.65,224.49,1.11417097]
[1734308265476,2.9,224.65,224.5,1.11417097]
[1734308265677,2.9,224.65,224.51,5.38306323]
[1734308266079,2.2269,224.61,224.53,2.2276]
[1734308266275,2.9,224.65,224.48,5.7369]
[1734308266680,2.2272,224.58,224.51,2.2278]
[1734308266881,2.9,224.59,224.5,5.4033901]
[1734308267081,2.9,224.6,224.5,5.4033901]
[1734308267683,2.2271,224.58,224.51,2.2278]
[1734308268083,2.9,224.6,224.48,5.7369]
[1734308268479,2.9,224.6,224.49,2.2279]
[1734308269487,2.2275,224.54,224.49,2.2279]
[1734308269882,5.1275,224.54,224.49,2.2279]
[1734308270085,5.1275,224.54,224.42,5.6944]
[1734308270691,5.1275,224.54,224.49,2.228]
[1734308270692,2.9,224.54,224.49,2.228]
[1734308270888,2.9,224.54,224.42,5.6944]
[1734308271292,2.9,224.59,224.53,2.2276]
[1734308271995,2.9,224.59,224.54,2.2275]
[1734308272692,2.2271,224.58,224.46,5.40691616]
[1734308272896,2.2271,224.58,224.47,3.0364]
[1734308273098,2.9,224.59,224.47,3.0364]
[1734308273300,2.9,224.59,224.47,5.9364]
[1734308273700,2.9,224.59,224.5,2.2278]